[Event "Late-Titled-Tuesday-Blitz-September-12-2023"]
[Site "Chess.com"]
[Date "2023.09.12"]
[Round "9"]
[White "IMRosen"]
[Black "andrzej"]
[Result "1/2-1/2"]
[WhiteElo "2607"]
[BlackElo "2451"]
[TimeControl "180+1"]
[EndTime "15:40:14 PDT"]
[Termination "Game drawn by repetition"]

1. e4 {[%clk 0:03:00.9]} 1... e5 {[%clk 0:02:59.6]} 2. Nf3 {[%clk 0:03:00.1]}
2... Nf6 {[%clk 0:03:00]} 3. Nc3 {[%clk 0:02:55.1]} 3... Bb4 {[%clk 0:02:59.6]}
4. Bc4 {[%clk 0:02:44.3]} 4... Bxc3 {[%clk 0:02:59.6]} 5. dxc3 {[%clk
0:02:43.2]} 5... d6 {[%clk 0:03:00.2]} 6. Qe2 {[%clk 0:02:36.7]} 6... h6 {[%clk
0:02:56.4]} 7. h3 {[%clk 0:02:36.7]} 7... Nbd7 {[%clk 0:02:53.8]} 8. Nd2 {[%clk
0:02:27.9]} 8... Nc5 {[%clk 0:02:47.3]} 9. f3 {[%clk 0:02:02.2]} 9... Nh5 {[%clk
0:02:36.6]} 10. Nf1 {[%clk 0:02:02.3]} 10... Qf6 {[%clk 0:02:32.6]} 11. Be3
{[%clk 0:02:00.3]} 11... Ne6 {[%clk 0:02:19]} 12. O-O-O {[%clk 0:01:55.2]} 12...
Nhf4 {[%clk 0:02:16.4]} 13. Qd2 {[%clk 0:01:52.1]} 13... O-O {[%clk 0:02:08.7]}
14. Nh2 {[%clk 0:01:43.4]} 14... Qe7 {[%clk 0:02:00.9]} 15. g3 {[%clk
0:01:33.3]} 15... Ng6 {[%clk 0:01:41]} 16. h4 {[%clk 0:01:32.9]} 16... Re8
{[%clk 0:01:40.1]} 17. h5 {[%clk 0:01:29.5]} 17... Ngf8 {[%clk 0:01:40.2]} 18.
f4 {[%clk 0:01:30.2]} 18... a6 {[%clk 0:01:26.6]} 19. Nf3 {[%clk 0:01:27.7]}
19... Qf6 {[%clk 0:01:08.2]} 20. f5 {[%clk 0:01:27.5]} 20... Nc5 {[%clk
0:01:02.3]} 21. Bxc5 {[%clk 0:01:07.1]} 21... dxc5 {[%clk 0:01:01.3]} 22. g4
{[%clk 0:01:07.7]} 22... Nh7 {[%clk 0:00:59.8]} 23. Rdg1 {[%clk 0:00:57.6]}
23... Rd8 {[%clk 0:00:52.5]} 24. Qe3 {[%clk 0:00:46.6]} 24... b5 {[%clk
0:00:44.1]} 25. Be2 {[%clk 0:00:32.2]} 25... Ng5 {[%clk 0:00:35.2]} 26. Nxg5
{[%clk 0:00:32]} 26... Qxg5 {[%clk 0:00:35.3]} 27. Qxg5 {[%clk 0:00:29.5]} 27...
hxg5 {[%clk 0:00:36.2]} 28. h6 {[%clk 0:00:30.3]} 28... Bb7 {[%clk 0:00:32.3]}
29. Rh5 {[%clk 0:00:13.6]} 29... f6 {[%clk 0:00:29.1]} 30. Bf3 {[%clk
0:00:13.1]} 30... gxh6 {[%clk 0:00:11.1]} 31. Rxh6 {[%clk 0:00:12.4]} 31... Kg7
{[%clk 0:00:11]} 32. Rg6+ {[%clk 0:00:08.3]} 32... Kf7 {[%clk 0:00:10.2]} 33.
Rh6 {[%clk 0:00:08.8]} 33... Kg7 {[%clk 0:00:10]} 34. Rh5 {[%clk 0:00:08.3]}
34... Rh8 {[%clk 0:00:09.8]} 35. Rgh1 {[%clk 0:00:08.9]} 35... Rxh5 {[%clk
0:00:10.1]} 36. Rxh5 {[%clk 0:00:03.9]} 36... Rh8 {[%clk 0:00:10]} 37. Rxh8
{[%clk 0:00:03]} 37... Kxh8 {[%clk 0:00:10.3]} 38. Kd2 {[%clk 0:00:03.3]} 38...
Kg7 {[%clk 0:00:10.1]} 39. c4 {[%clk 0:00:01.8]} 39... b4 {[%clk 0:00:10.2]} 40.
c3 {[%clk 0:00:02.1]} 40... a5 {[%clk 0:00:10.5]} 41. cxb4 {[%clk 0:00:02.1]}
41... cxb4 {[%clk 0:00:10.8]} 42. a3 {[%clk 0:00:02]} 42... c5 {[%clk 0:00:11]}
43. axb4 {[%clk 0:00:01.8]} 43... axb4 {[%clk 0:00:11.7]} 44. Kc2 {[%clk
0:00:02.5]} 44... Bc6 {[%clk 0:00:11.9]} 45. Kb3 {[%clk 0:00:03.1]} 45... Kf7
{[%clk 0:00:12.6]} 46. Kc2 {[%clk 0:00:03]} 46... Ke7 {[%clk 0:00:13.2]} 47. Kd3
{[%clk 0:00:03.6]} 47... Kd6 {[%clk 0:00:13.8]} 48. Bd1 {[%clk 0:00:04.3]} 48...
Kc7 {[%clk 0:00:14.5]} 49. Bb3 {[%clk 0:00:05]} 49... Kb6 {[%clk 0:00:14.9]} 50.
Bc2 {[%clk 0:00:05.6]} 50... Ka5 {[%clk 0:00:15.2]} 51. Bd1 {[%clk 0:00:04.2]}
51... Kb6 {[%clk 0:00:15.4]} 52. Bc2 {[%clk 0:00:04.4]} 52... Ka5 {[%clk
0:00:14.6]} 53. Bd1 {[%clk 0:00:04.5]} 53... Bb7 {[%clk 0:00:14.4]} 54. Bc2
{[%clk 0:00:03.5]} 54... Ba6 {[%clk 0:00:14.7]} 55. b3 {[%clk 0:00:02.6]} 55...
Bb7 {[%clk 0:00:14.7]} 56. Bd1 {[%clk 0:00:03.1]} 56... Bc6 {[%clk 0:00:15.1]}
57. Ke3 {[%clk 0:00:03.7]} 57... Kb6 {[%clk 0:00:15.7]} 58. Bc2 {[%clk
0:00:04.3]} 58... Kc7 {[%clk 0:00:16.3]} 59. Bd3 {[%clk 0:00:05]} 59... Kb6
{[%clk 0:00:16.8]} 60. Be2 {[%clk 0:00:05.7]} 60... Kc7 {[%clk 0:00:17.3]} 61.
Bf3 {[%clk 0:00:06.4]} 61... Kb6 {[%clk 0:00:17.8]} 62. Bg2 {[%clk 0:00:07.1]}
62... Kc7 {[%clk 0:00:18.4]} 63. Bf1 {[%clk 0:00:07.8]} 63... Kb6 {[%clk
0:00:19]} 64. Kd2 {[%clk 0:00:08.4]} 64... Kc7 {[%clk 0:00:19.6]} 65. Bd3 {[%clk
0:00:08.6]} 65... Kb6 {[%clk 0:00:19.9]} 66. Ke3 {[%clk 0:00:08.8]} 66... Kc7
{[%clk 0:00:20.4]} 67. Kf3 {[%clk 0:00:09.3]} 67... Kb6 {[%clk 0:00:20.8]} 68.
Ke3 {[%clk 0:00:10.1]} 68... Kc7 {[%clk 0:00:21.2]} 69. Kf3 {[%clk 0:00:10.8]}
69... Kb6 {[%clk 0:00:21.7]} 70. Ke3 {[%clk 0:00:11.5]} 1/2-1/2

[Event "Late-Titled-Tuesday-Blitz-September-12-2023"]
[Site "Chess.com"]
[Date "2023.09.12"]
[Round "9"]
[White "Michalczak"]
[Black "ChessSwole"]
[Result "0-1"]
[WhiteElo "2517"]
[BlackElo "2705"]
[TimeControl "180+1"]
[EndTime "15:40:16 PDT"]
[Termination "ChessSwole won by resignation"]

1. e4 {[%clk 0:02:59.8]} 1... e5 {[%clk 0:02:59.7]} 2. Nf3 {[%clk 0:02:59.7]}
2... Nc6 {[%clk 0:03:00.3]} 3. Bb5 {[%clk 0:02:59.1]} 3... a6 {[%clk 0:02:59.8]}
4. Ba4 {[%clk 0:02:59.4]} 4... Nf6 {[%clk 0:03:00]} 5. O-O {[%clk 0:02:59.2]}
5... Nxe4 {[%clk 0:03:00.4]} 6. d4 {[%clk 0:02:58.5]} 6... Be7 {[%clk
0:02:59.7]} 7. dxe5 {[%clk 0:02:54.3]} 7... Nc5 {[%clk 0:02:58.6]} 8. Bb3 {[%clk
0:02:45.3]} 8... Nxb3 {[%clk 0:02:57.3]} 9. axb3 {[%clk 0:02:46.2]} 9... O-O
{[%clk 0:02:55.3]} 10. Nc3 {[%clk 0:02:45.3]} 10... d6 {[%clk 0:02:55.1]} 11.
Bf4 {[%clk 0:02:43.8]} 11... dxe5 {[%clk 0:02:53.4]} 12. Nxe5 {[%clk 0:02:41.2]}
12... Nxe5 {[%clk 0:02:52.8]} 13. Bxe5 {[%clk 0:02:41.2]} 13... Be6 {[%clk
0:02:51.7]} 14. Qxd8 {[%clk 0:02:38]} 14... Bxd8 {[%clk 0:02:52.6]} 15. Ne4
{[%clk 0:02:29.7]} 15... Bd5 {[%clk 0:02:32.3]} 16. Nc5 {[%clk 0:02:23.5]} 16...
Re8 {[%clk 0:02:25.4]} 17. Rfe1 {[%clk 0:02:19.7]} 17... Be7 {[%clk 0:02:19]}
18. Nd3 {[%clk 0:01:50.6]} 18... c5 {[%clk 0:02:10.3]} 19. c4 {[%clk 0:01:47.1]}
19... Bc6 {[%clk 0:02:08.7]} 20. Bc7 {[%clk 0:01:38.8]} 20... Rac8 {[%clk
0:01:49.5]} 21. Bb6 {[%clk 0:01:38.5]} 21... Bd7 {[%clk 0:01:49.8]} 22. Ra5
{[%clk 0:01:27.4]} 22... Bf5 {[%clk 0:01:29.1]} 23. Nf4 {[%clk 0:01:00.5]} 23...
f6 {[%clk 0:01:21.4]} 24. Nd5 {[%clk 0:00:59.1]} 24... Bf8 {[%clk 0:01:21.3]}
25. Raa1 {[%clk 0:00:41.5]} 25... Bc2 {[%clk 0:01:17.2]} 26. Rec1 {[%clk
0:00:29]} 26... Bf5 {[%clk 0:00:59.1]} 27. Ne3 {[%clk 0:00:25]} 27... Bg6 {[%clk
0:00:54.9]} 28. Rd1 {[%clk 0:00:25.2]} 28... Kf7 {[%clk 0:00:50.1]} 29. h4
{[%clk 0:00:23.9]} 29... Be4 {[%clk 0:00:47.5]} 30. Rd2 {[%clk 0:00:20.4]} 30...
g6 {[%clk 0:00:43.6]} 31. Rad1 {[%clk 0:00:18.6]} 31... Bc6 {[%clk 0:00:43.8]}
32. Nd5 {[%clk 0:00:17.7]} 32... Bh6 {[%clk 0:00:44.2]} 33. Rd3 {[%clk
0:00:16.9]} 33... Re5 {[%clk 0:00:37.3]} 34. Ne3 {[%clk 0:00:17.2]} 34... f5
{[%clk 0:00:36.1]} 35. g3 {[%clk 0:00:16.1]} 35... Rce8 {[%clk 0:00:34.7]} 36.
Kf1 {[%clk 0:00:15.5]} 36... f4 {[%clk 0:00:30.9]} 37. gxf4 {[%clk 0:00:15.3]}
37... Bxf4 {[%clk 0:00:31.2]} 38. Ng4 {[%clk 0:00:14]} 38... R5e7 {[%clk
0:00:29.6]} 39. Ne3 {[%clk 0:00:13.3]} 39... Bf3 {[%clk 0:00:29.5]} 40. R1d2
{[%clk 0:00:13.3]} 40... Be4 {[%clk 0:00:29.8]} 41. Rd7 {[%clk 0:00:12.7]} 41...
Bc6 {[%clk 0:00:27.7]} 42. Rxe7+ {[%clk 0:00:13.1]} 42... Rxe7 {[%clk
0:00:28.4]} 43. Bxc5 {[%clk 0:00:13.7]} 43... Re5 {[%clk 0:00:26.4]} 44. Bd6
{[%clk 0:00:13.4]} 44... Re4 {[%clk 0:00:24.8]} 45. Bxf4 {[%clk 0:00:13.6]}
45... Rxf4 {[%clk 0:00:25.7]} 46. Ke2 {[%clk 0:00:14]} 46... Rxh4 {[%clk
0:00:26]} 47. Nd5 {[%clk 0:00:13.5]} 47... h5 {[%clk 0:00:25.6]} 48. Nb4 {[%clk
0:00:11.8]} 48... Re4+ {[%clk 0:00:23.7]} 49. Kd3 {[%clk 0:00:10.1]} 49... Rf4
{[%clk 0:00:23.1]} 50. Nxc6 {[%clk 0:00:09.2]} 50... bxc6 {[%clk 0:00:24]} 51.
Ke3 {[%clk 0:00:09.7]} 51... g5 {[%clk 0:00:20.4]} 52. Rd7+ {[%clk 0:00:10.3]}
52... Kg6 {[%clk 0:00:20.1]} 53. Rd6+ {[%clk 0:00:10.6]} 53... Rf6 {[%clk
0:00:20.1]} 54. Rd7 {[%clk 0:00:11]} 54... h4 {[%clk 0:00:20.2]} 55. Rd8 {[%clk
0:00:11]} 55... h3 {[%clk 0:00:19.7]} 56. Rh8 {[%clk 0:00:10.5]} 56... g4 {[%clk
0:00:20.3]} 57. Ke2 {[%clk 0:00:08.3]} 57... Rf3 {[%clk 0:00:18.6]} 58. b4
{[%clk 0:00:06.8]} 58... Rb3 {[%clk 0:00:18.4]} 59. Kf1 {[%clk 0:00:05.5]} 59...
Rxb4 {[%clk 0:00:17.8]} 60. Rg8+ {[%clk 0:00:05.2]} 60... Kf5 {[%clk 0:00:18.2]}
61. Rh8 {[%clk 0:00:05.6]} 61... Rxc4 {[%clk 0:00:17.8]} 62. Rf8+ {[%clk
0:00:06.5]} 62... Ke6 {[%clk 0:00:17.4]} 63. Re8+ {[%clk 0:00:06.8]} 63... Kd7
{[%clk 0:00:17.6]} 64. Rg8 {[%clk 0:00:06.9]} 64... Rb4 {[%clk 0:00:17.5]} 65.
Rg6 {[%clk 0:00:06.1]} 65... Rxb2 {[%clk 0:00:17.5]} 66. Rxg4 {[%clk 0:00:05]}
66... Rb1+ {[%clk 0:00:18]} 67. Ke2 {[%clk 0:00:05.1]} 67... h2 {[%clk
0:00:18.7]} 0-1

[Event "Late-Titled-Tuesday-Blitz-September-12-2023"]
[Site "Chess.com"]
[Date "2023.09.12"]
[Round "9"]
[White "MikeSailer"]
[Black "reevecanada"]
[Result "0-1"]
[WhiteElo "2188"]
[BlackElo "2488"]
[TimeControl "180+1"]
[EndTime "15:40:18 PDT"]
[Termination "reevecanada won on time"]

1. d4 {[%clk 0:02:35.3]} 1... d5 {[%clk 0:02:57.1]} 2. Nc3 {[%clk 0:02:33.9]}
2... Nf6 {[%clk 0:02:56.3]} 3. Bf4 {[%clk 0:02:34.7]} 3... e6 {[%clk 0:02:54]}
4. Nb5 {[%clk 0:02:33.9]} 4... Na6 {[%clk 0:02:53.2]} 5. a3 {[%clk 0:02:32.2]}
5... c6 {[%clk 0:02:53.3]} 6. Nc3 {[%clk 0:02:32.3]} 6... Qb6 {[%clk 0:02:53.4]}
7. e3 {[%clk 0:02:21.9]} 7... Be7 {[%clk 0:02:50.2]} 8. Nf3 {[%clk 0:02:19.1]}
8... O-O {[%clk 0:02:49]} 9. Be2 {[%clk 0:02:15.9]} 9... Ne4 {[%clk 0:02:48.1]}
10. Nxe4 {[%clk 0:02:05.9]} 10... dxe4 {[%clk 0:02:46.1]} 11. Nd2 {[%clk
0:02:06.8]} 11... Qxb2 {[%clk 0:02:43.5]} 12. Nxe4 {[%clk 0:01:49.2]} 12... Bxa3
{[%clk 0:02:08.9]} 13. O-O {[%clk 0:01:41.6]} 13... Be7 {[%clk 0:02:06]} 14.
Bxa6 {[%clk 0:01:20]} 14... bxa6 {[%clk 0:02:02.9]} 15. Qd3 {[%clk 0:01:16.8]}
15... Qb5 {[%clk 0:01:58.5]} 16. c4 {[%clk 0:01:14.4]} 16... Qf5 {[%clk
0:01:57.7]} 17. Rfd1 {[%clk 0:01:05.6]} 17... Rd8 {[%clk 0:01:51.6]} 18. h3
{[%clk 0:00:47.2]} 18... Bb7 {[%clk 0:01:44.6]} 19. g4 {[%clk 0:00:47.4]} 19...
Qg6 {[%clk 0:01:38.5]} 20. Nc5 {[%clk 0:00:42]} 20... Bxc5 {[%clk 0:01:31.2]}
21. Qxg6 {[%clk 0:00:42.6]} 21... hxg6 {[%clk 0:01:29.2]} 22. dxc5 {[%clk
0:00:43.1]} 22... Kf8 {[%clk 0:01:24.9]} 23. Bd6+ {[%clk 0:00:40.7]} 23... Ke8
{[%clk 0:01:23.8]} 24. Rab1 {[%clk 0:00:34.8]} 24... Rd7 {[%clk 0:01:18]} 25.
Rb2 {[%clk 0:00:32.2]} 25... Kd8 {[%clk 0:01:09.1]} 26. Rdb1 {[%clk 0:00:28.7]}
26... Kc8 {[%clk 0:01:07]} 27. Kg2 {[%clk 0:00:24.4]} 27... f6 {[%clk
0:01:03.9]} 28. Kg3 {[%clk 0:00:23.5]} 28... a5 {[%clk 0:01:00.6]} 29. Ra2
{[%clk 0:00:13]} 29... Ba6 {[%clk 0:00:59.2]} 30. Rab2 {[%clk 0:00:10.2]} 30...
Rb7 {[%clk 0:00:54]} 31. Rxb7 {[%clk 0:00:09.5]} 31... Bxb7 {[%clk 0:00:54.5]}
32. Ra1 {[%clk 0:00:09.3]} 32... Ba6 {[%clk 0:00:53.5]} 33. Rxa5 {[%clk
0:00:09.8]} 33... Bxc4 {[%clk 0:00:53.5]} 34. Kf4 {[%clk 0:00:10.4]} 34... Kb7
{[%clk 0:00:53.2]} 35. h4 {[%clk 0:00:10.9]} 35... e5+ {[%clk 0:00:51.4]} 36.
Ke4 {[%clk 0:00:09.4]} 36... Be2 {[%clk 0:00:45.9]} 37. g5 {[%clk 0:00:09.4]}
37... Rh8 {[%clk 0:00:40.1]} 38. f4 {[%clk 0:00:08]} 38... Rxh4 {[%clk
0:00:39.3]} 39. gxf6 {[%clk 0:00:08.9]} 39... gxf6 {[%clk 0:00:39.2]} 40. Be7
{[%clk 0:00:09.8]} 40... exf4 {[%clk 0:00:22]} 41. Bxf6 {[%clk 0:00:10.6]} 41...
Rh5 {[%clk 0:00:21.8]} 42. exf4 {[%clk 0:00:09.2]} 42... Rd5 {[%clk 0:00:22.3]}
43. Be7 {[%clk 0:00:08.7]} 43... Bd3+ {[%clk 0:00:21.1]} 44. Ke3 {[%clk
0:00:08.5]} 44... Bf5 {[%clk 0:00:21.6]} 45. Bd6 {[%clk 0:00:08.4]} 45... Rd3+
{[%clk 0:00:21]} 46. Ke2 {[%clk 0:00:08.7]} 46... a6 {[%clk 0:00:21.4]} 47. Kf2
{[%clk 0:00:08.3]} 47... Rb3 {[%clk 0:00:22]} 48. Ke2 {[%clk 0:00:08.4]} 48...
Rb5 {[%clk 0:00:21.9]} 49. Ra4 {[%clk 0:00:07.7]} 49... Rb3 {[%clk 0:00:20.6]}
50. Kd2 {[%clk 0:00:07.8]} 50... Rb5 {[%clk 0:00:18.5]} 51. Kc3 {[%clk 0:00:08]}
51... a5 {[%clk 0:00:19]} 52. Kc4 {[%clk 0:00:06.5]} 52... Be6+ {[%clk
0:00:17.5]} 53. Kd4 {[%clk 0:00:06.3]} 53... Ka6 {[%clk 0:00:17.7]} 54. Kc3
{[%clk 0:00:06.6]} 54... Bb3 {[%clk 0:00:17.4]} 55. Ra1 {[%clk 0:00:06.1]} 55...
a4 {[%clk 0:00:17.9]} 56. Re1 {[%clk 0:00:01.8]} 56... a3 {[%clk 0:00:17.3]} 0-1

[Event "Late-Titled-Tuesday-Blitz-September-12-2023"]
[Site "Chess.com"]
[Date "2023.09.12"]
[Round "9"]
[White "NovikovaGalina"]
[Black "ferdipy"]
[Result "0-1"]
[WhiteElo "2415"]
[BlackElo "2293"]
[TimeControl "180+1"]
[EndTime "15:40:19 PDT"]
[Termination "ferdipy won on time"]

1. e4 {[%clk 0:03:00.9]} 1... e6 {[%clk 0:02:59.5]} 2. Nf3 {[%clk 0:03:00.8]}
2... d5 {[%clk 0:03:00.2]} 3. e5 {[%clk 0:03:01.5]} 3... c5 {[%clk 0:03:00.3]}
4. b4 {[%clk 0:03:02.1]} 4... cxb4 {[%clk 0:03:00.6]} 5. a3 {[%clk 0:03:02.7]}
5... bxa3 {[%clk 0:03:01.3]} 6. Nxa3 {[%clk 0:03:03.6]} 6... a6 {[%clk
0:03:01.3]} 7. c3 {[%clk 0:03:03.5]} 7... Bd7 {[%clk 0:03:01.8]} 8. d4 {[%clk
0:03:04]} 8... Nc6 {[%clk 0:03:02.7]} 9. Bd3 {[%clk 0:03:04.2]} 9... Rc8 {[%clk
0:03:03.2]} 10. O-O {[%clk 0:03:04.6]} 10... Na5 {[%clk 0:03:03.9]} 11. Bd2
{[%clk 0:03:02.7]} 11... Nc4 {[%clk 0:03:04.3]} 12. Nxc4 {[%clk 0:02:59.3]}
12... dxc4 {[%clk 0:03:05.2]} 13. Be4 {[%clk 0:02:57.1]} 13... Bc6 {[%clk
0:03:05.8]} 14. Qe2 {[%clk 0:02:57.1]} 14... Bxe4 {[%clk 0:03:05.3]} 15. Qxe4
{[%clk 0:02:58]} 15... Qd5 {[%clk 0:03:05.6]} 16. Qg4 {[%clk 0:02:58.6]} 16...
Nh6 {[%clk 0:03:04.3]} 17. Bxh6 {[%clk 0:02:55.2]} 17... gxh6 {[%clk 0:03:04]}
18. Rfb1 {[%clk 0:02:55.1]} 18... Kd7 {[%clk 0:02:19.6]} 19. Qf4 {[%clk
0:02:49.1]} 19... Ke8 {[%clk 0:02:15.4]} 20. Qg4 {[%clk 0:02:31.3]} 20... Be7
{[%clk 0:02:01.7]} 21. Rb6 {[%clk 0:02:26]} 21... Kf8 {[%clk 0:01:58]} 22. Rab1
{[%clk 0:02:24.1]} 22... Rg8 {[%clk 0:01:51.9]} 23. Qh3 {[%clk 0:02:23.8]} 23...
Rc7 {[%clk 0:01:50.2]} 24. Qxh6+ {[%clk 0:02:22.5]} 24... Rg7 {[%clk 0:01:42.7]}
25. Qe3 {[%clk 0:02:00.3]} 25... Kg8 {[%clk 0:01:41.2]} 26. g3 {[%clk 0:01:58]}
26... Rd7 {[%clk 0:01:37.5]} 27. Nd2 {[%clk 0:01:51.9]} 27... Bd8 {[%clk
0:01:34]} 28. Ne4 {[%clk 0:01:45.3]} 28... Rg6 {[%clk 0:01:22.6]} 29. Rd6 {[%clk
0:01:28.1]} 29... Rxd6 {[%clk 0:01:20.5]} 30. Nxd6 {[%clk 0:01:28.4]} 30... b5
{[%clk 0:01:16.4]} 31. Ra1 {[%clk 0:01:25.1]} 31... a5 {[%clk 0:01:11.1]} 32.
Qf4 {[%clk 0:01:21]} 32... f5 {[%clk 0:01:06.3]} 33. Rb1 {[%clk 0:01:12.1]}
33... Bg5 {[%clk 0:00:55.9]} 34. Nxf5 {[%clk 0:00:46.5]} 34... Bxf4 {[%clk
0:00:55.2]} 35. Ne7+ {[%clk 0:00:46.6]} 35... Kf8 {[%clk 0:00:52.2]} 36. Nxd5
{[%clk 0:00:47.5]} 36... exd5 {[%clk 0:00:52]} 37. Rxb5 {[%clk 0:00:47.3]} 37...
Bd2 {[%clk 0:00:42.8]} 38. Rxa5 {[%clk 0:00:47.4]} 38... Bxc3 {[%clk 0:00:36]}
39. Rxd5 {[%clk 0:00:47.9]} 39... Rc6 {[%clk 0:00:27.5]} 40. Rd7 {[%clk
0:00:44.4]} 40... Ba1 {[%clk 0:00:23.2]} 41. d5 {[%clk 0:00:44.4]} 41... Rc8
{[%clk 0:00:22.3]} 42. d6 {[%clk 0:00:15.5]} 42... Bxe5 {[%clk 0:00:21.6]} 43.
Rc7 {[%clk 0:00:10.5]} 43... Rxc7 {[%clk 0:00:17.4]} 44. dxc7 {[%clk 0:00:11.4]}
44... Bxc7 {[%clk 0:00:17.7]} 45. Kf1 {[%clk 0:00:12.3]} 45... Be5 {[%clk
0:00:17]} 46. Ke2 {[%clk 0:00:12.5]} 46... Ke7 {[%clk 0:00:17.6]} 47. f4 {[%clk
0:00:12.9]} 47... Bd4 {[%clk 0:00:17.6]} 48. Kd2 {[%clk 0:00:13.2]} 48... Ke6
{[%clk 0:00:16.2]} 49. Ke2 {[%clk 0:00:13.5]} 49... Kf5 {[%clk 0:00:16.4]} 50.
Kf3 {[%clk 0:00:12.2]} 50... h5 {[%clk 0:00:14.8]} 51. h3 {[%clk 0:00:12.3]}
51... c3 {[%clk 0:00:12.8]} 52. g4+ {[%clk 0:00:12.6]} 52... hxg4+ {[%clk
0:00:13.4]} 53. hxg4+ {[%clk 0:00:13.5]} 53... Ke6 {[%clk 0:00:13.9]} 54. Ke2
{[%clk 0:00:13.3]} 54... Kd5 {[%clk 0:00:13.3]} 55. Kd3 {[%clk 0:00:13.5]} 55...
Bh8 {[%clk 0:00:13.4]} 56. g5 {[%clk 0:00:08.9]} 56... Ke6 {[%clk 0:00:12.7]}
57. Ke4 {[%clk 0:00:06]} 57... c2 {[%clk 0:00:11]} 58. f5+ {[%clk 0:00:06.9]}
58... Kf7 {[%clk 0:00:11.4]} 59. f6 {[%clk 0:00:05]} 59... c1=Q {[%clk 0:00:11]}
60. Kf5 {[%clk 0:00:05.9]} 60... Qc2+ {[%clk 0:00:11.2]} 0-1

[Event "Late-Titled-Tuesday-Blitz-September-12-2023"]
[Site "Chess.com"]
[Date "2023.09.12"]
[Round "9"]
[White "Orest_Vovk"]
[Black "leoduarte"]
[Result "1/2-1/2"]
[WhiteElo "2576"]
[BlackElo "2461"]
[TimeControl "180+1"]
[EndTime "15:40:21 PDT"]
[Termination "Game drawn - insufficient material"]

1. e4 {[%clk 0:02:04.6]} 1... e5 {[%clk 0:02:59.7]} 2. Nf3 {[%clk 0:02:04]} 2...
Nc6 {[%clk 0:03:00.4]} 3. Nc3 {[%clk 0:02:03.3]} 3... Nf6 {[%clk 0:02:59.3]} 4.
Nxe5 {[%clk 0:02:03.4]} 4... Nxe5 {[%clk 0:02:59.1]} 5. d4 {[%clk 0:02:02]} 5...
Nc6 {[%clk 0:02:59.1]} 6. e5 {[%clk 0:02:02.3]} 6... Ng8 {[%clk 0:02:58.8]} 7.
f4 {[%clk 0:02:01.5]} 7... d6 {[%clk 0:02:54.9]} 8. d5 {[%clk 0:01:59.5]} 8...
Nb8 {[%clk 0:02:43.3]} 9. Bd3 {[%clk 0:01:58.1]} 9... dxe5 {[%clk 0:02:39]} 10.
fxe5 {[%clk 0:01:57.9]} 10... c6 {[%clk 0:02:32.2]} 11. d6 {[%clk 0:01:50.6]}
11... Bxd6 {[%clk 0:02:23.3]} 12. exd6 {[%clk 0:01:49.6]} 12... Qxd6 {[%clk
0:02:24.2]} 13. O-O {[%clk 0:01:47.8]} 13... Nf6 {[%clk 0:02:24]} 14. Qe2+
{[%clk 0:01:22.7]} 14... Be6 {[%clk 0:02:21.3]} 15. Bf4 {[%clk 0:01:22.6]} 15...
Qc5+ {[%clk 0:02:17.2]} 16. Be3 {[%clk 0:01:22.7]} 16... Qe5 {[%clk 0:02:06.2]}
17. Rae1 {[%clk 0:01:04.1]} 17... Ng4 {[%clk 0:01:57.2]} 18. Bf4 {[%clk
0:00:58.3]} 18... Qxe2 {[%clk 0:01:47.9]} 19. Rxe2 {[%clk 0:00:58.2]} 19... Nd7
{[%clk 0:01:48.1]} 20. Ne4 {[%clk 0:00:56.2]} 20... O-O {[%clk 0:01:43.3]} 21.
Ng5 {[%clk 0:00:52.6]} 21... Ngf6 {[%clk 0:01:05.6]} 22. Nxe6 {[%clk 0:00:51.5]}
22... fxe6 {[%clk 0:01:06.5]} 23. Rxe6 {[%clk 0:00:51.3]} 23... Rfe8 {[%clk
0:01:06.3]} 24. Rfe1 {[%clk 0:00:43]} 24... Rxe6 {[%clk 0:01:03.9]} 25. Rxe6
{[%clk 0:00:43.9]} 25... Re8 {[%clk 0:01:03]} 26. Rxe8+ {[%clk 0:00:40.4]} 26...
Nxe8 {[%clk 0:01:03.7]} 27. Be3 {[%clk 0:00:38.9]} 27... b6 {[%clk 0:01:00.7]}
28. Bc4+ {[%clk 0:00:39]} 28... Kf8 {[%clk 0:00:59.5]} 29. Bd3 {[%clk
0:00:37.6]} 29... Nef6 {[%clk 0:00:58.5]} 30. Bd4 {[%clk 0:00:33.5]} 30... Ke7
{[%clk 0:00:57.6]} 31. h3 {[%clk 0:00:32.6]} 31... Kd6 {[%clk 0:00:57]} 32. Bf2
{[%clk 0:00:32]} 32... Nc5 {[%clk 0:00:50.7]} 33. Be2 {[%clk 0:00:28.3]} 33...
Nce4 {[%clk 0:00:50.2]} 34. Be1 {[%clk 0:00:27.6]} 34... Nd5 {[%clk 0:00:36.1]}
35. Bd3 {[%clk 0:00:25]} 35... Nef6 {[%clk 0:00:36]} 36. Bg3+ {[%clk 0:00:21.7]}
36... Ke6 {[%clk 0:00:35.1]} 37. Kf2 {[%clk 0:00:21]} 37... h6 {[%clk
0:00:32.5]} 38. a3 {[%clk 0:00:20.5]} 38... Nd7 {[%clk 0:00:26]} 39. Bh2 {[%clk
0:00:18.6]} 39... Ne5 {[%clk 0:00:25.6]} 40. Be2 {[%clk 0:00:17.2]} 40... Nf6
{[%clk 0:00:21.8]} 41. Ke3 {[%clk 0:00:14]} 41... Nd5+ {[%clk 0:00:21.7]} 42.
Kd2 {[%clk 0:00:13.4]} 42... Nf6 {[%clk 0:00:20.4]} 43. c4 {[%clk 0:00:11.9]}
43... c5 {[%clk 0:00:17.6]} 44. g4 {[%clk 0:00:10.9]} 44... Ne4+ {[%clk
0:00:16.7]} 45. Ke3 {[%clk 0:00:10.9]} 45... Ng5 {[%clk 0:00:17.1]} 46. h4
{[%clk 0:00:09.1]} 46... Ngf7 {[%clk 0:00:17.3]} 47. Kf4 {[%clk 0:00:07.8]}
47... Nd6 {[%clk 0:00:14.9]} 48. g5 {[%clk 0:00:07]} 48... hxg5+ {[%clk
0:00:14.7]} 49. hxg5 {[%clk 0:00:07.9]} 49... Nexc4 {[%clk 0:00:15.2]} 50. b4
{[%clk 0:00:06.3]} 50... Nxa3 {[%clk 0:00:13.2]} 51. bxc5 {[%clk 0:00:05.6]}
51... bxc5 {[%clk 0:00:14.1]} 52. Bg4+ {[%clk 0:00:05.7]} 52... Ke7 {[%clk
0:00:13.7]} 53. Ke5 {[%clk 0:00:04.5]} 53... Nac4+ {[%clk 0:00:13.6]} 54. Kd5
{[%clk 0:00:04.8]} 54... Ne3+ {[%clk 0:00:13.5]} 55. Kxc5 {[%clk 0:00:05.1]}
55... Nxg4 {[%clk 0:00:14.4]} 56. Bxd6+ {[%clk 0:00:05.1]} 56... Kd7 {[%clk
0:00:13.4]} 57. g6 {[%clk 0:00:04.3]} 57... Nf6 {[%clk 0:00:10.2]} 58. Bf8
{[%clk 0:00:03.2]} 58... Ne8 {[%clk 0:00:09.8]} 59. Kb5 {[%clk 0:00:02.9]} 59...
Ke6 {[%clk 0:00:06.7]} 60. Ka6 {[%clk 0:00:02.9]} 60... Kf6 {[%clk 0:00:06.8]}
61. Bxg7+ {[%clk 0:00:03.1]} 61... Kxg6 {[%clk 0:00:05.8]} 62. Kxa7 {[%clk
0:00:04]} 1/2-1/2